bitfinex-derivatives/quotes_ETHF0:USTF0_20250326
["timestamp","ask_amount","ask_price","bid_price","bid_amount"]
[1742973140102,1.316,2065.1,2065.0,4.1762]
[1742973140799,1.316,2065.1,2065.0,4.67173055]
[1742973140997,1.316,2065.1,2065.0,6.79173055]
[1742973141211,1.316,2065.1,2065.0,4.67173055]
[1742973141404,0.00725847,2065.3,2065.2,0.96831]
[1742973141604,0.00725847,2065.3,2065.2,3.75384055]
[1742973141809,0.00725847,2065.3,2065.2,3.5323017]
[1742973142211,0.00725847,2065.3,2065.2,3.53229135]
[1742973143208,0.00725847,2065.3,2065.2,3.53229181]
[1742973144010,0.00725847,2065.3,2065.2,5.83229181]
[1742973144213,0.00725847,2065.3,2065.2,3.53229181]
[1742973144402,0.00725847,2065.3,2065.2,3.53228633]
[1742973145103,0.00725847,2065.3,2065.2,2.86881882]
[1742973145412,0.97551847,2065.3,2065.2,0.49550882]
[1742973145714,2.34921847,2065.3,2065.2,0.49550882]
[1742973146609,2.34921847,2065.3,2065.2,0.49560403]
[1742973148507,2.34921847,2065.3,2065.2,0.49567258]
[1742973149612,2.34921847,2065.3,2065.2,1.46398258]
[1742973150117,2.34921847,2065.3,2065.2,2.84298258]
[1742973150411,2.34921847,2065.3,2065.2,0.49567258]
[1742973150715,2.34921847,2065.3,2065.2,1.46404591]
[1742973151808,2.34921847,2065.3,2065.2,2.87554591]
[1742973152005,2.34921847,2065.3,2065.2,1.90723591]
[1742973152817,2.34921847,2065.3,2065.2,1.90727022]
[1742973153217,2.34921847,2065.3,2065.2,2.87558022]
[1742973153709,2.34921847,2065.3,2065.2,1.90727022]
[1742973154112,2.34921847,2065.3,2065.2,0.49577022]
[1742973154916,0.96831,2065.2,2065.1,3.60782]
[1742973155118,2.38341,2065.2,2065.1,4.10360138]
[1742973156817,1.4151,2065.2,2065.1,4.10360138]
[1742973157018,1.4151,2065.2,2065.1,4.10360749]
[1742973157518,2.38341,2065.2,2065.1,4.10360749]
[1742973159120,2.38341,2065.2,2065.1,4.10360965]
[1742973161123,2.38341,2065.2,2065.1,3.60782]
[1742973161312,2.38341,2065.2,2065.1,4.10360858]
[1742973161810,0.00725847,2065.3,2065.2,0.96831]
[1742973162012,0.00725847,2065.3,2065.2,3.42961576]
[1742973163321,0.00725847,2065.3,2065.2,3.42931186]
[1742973163510,1.4079,2065.4,2065.3,0.96826]
[1742973163710,1.65677,2065.7,2065.6,0.96812]
[1742973163907,1.65677,2065.7,2065.6,1.46377048]
[1742973164418,3.8625,2065.8,2065.7,0.96807]
[1742973164722,3.8625,2065.8,2065.7,1.46372048]
[1742973165020,5.2658,2065.8,2065.7,1.46372048]
[1742973165319,6.23386,2065.8,2065.7,1.46372048]
[1742973165519,6.23386,2065.8,2065.7,0.49565048]
[1742973169525,0.96807,2065.7,2065.6,0.96811]
[1742973169721,1.3045,2065.7,2065.6,1.46338675]
[1742973171627,1.3045,2065.7,2065.6,0.96811]
[1742973171820,1.3045,2065.7,2065.6,1.46323078]
[1742973174516,0.96798,2065.9,2065.8,0.96798]
[1742973174717,0.96798,2065.9,2065.8,1.46310078]
[1742973175120,0.96798,2065.9,2065.8,42.26310078]
[1742973176024,2.26048,2065.9,2065.8,43.64976661]
[1742973178026,2.26048,2065.9,2065.8,43.64967248]
[1742973179827,1.2925,2065.9,2065.8,43.64967248]
[1742973181028,2.26048,2065.9,2065.8,43.64967248]
[1742973182027,2.26048,2065.9,2065.8,43.15498]
[1742973182330,2.26048,2065.9,2065.8,43.64965622]
[1742973182517,1.2925,2065.9,2065.8,43.64965622]
[1742973183129,2.26048,2065.9,2065.8,42.26265622]
[1742973184826,2.26048,2065.9,2065.8,43.62375622]
[1742973185632,2.26048,2065.9,2065.8,43.62390066]
[1742973186327,2.26048,2065.9,2065.8,43.62399212]
[1742973190328,1.2925,2065.9,2065.8,43.62399212]
[1742973190530,1.2925,2065.9,2065.8,43.62448378]
[1742973190929,1.2925,2065.9,2065.8,46.33448378]
[1742973191228,1.2925,2065.9,2065.8,46.99777646]
[1742973191434,0.00725847,2066.0,2065.9,0.96798]
[1742973191637,0.00725847,2066.0,2065.9,2.76538378]
[1742973191827,0.00725847,2066.0,2065.9,6.38318378]
[1742973192035,0.00725847,2066.0,2065.9,49.59666445]
[1742973192234,6.3298,2066.5,2065.9,49.59666445]
[1742973192235,4.17554,2066.5,2066.4,0.96775]
[1742973192432,4.17554,2066.5,2066.4,1.46315378]
[1742973192633,4.17554,2066.5,2066.4,0.49544123]
[1742973192830,4.17554,2066.5,2066.4,1.46319123]
[1742973193034,4.17554,2066.5,2066.4,0.49544123]
[1742973193630,5.51824,2066.5,2066.4,0.49544123]
[1742973194136,0.96775,2066.4,2066.3,1.64187]
[1742973194341,2.31045,2066.4,2066.3,2.13707311]
[1742973194724,2.31045,2066.4,2066.3,2.13707318]
[1742973195140,2.31045,2066.4,2066.3,2.77957318]
[1742973195531,1.3427,2066.4,2066.3,2.77957318]
[1742973195934,2.31045,2066.4,2066.3,2.77957318]
[1742973196330,1.3427,2066.4,2066.3,2.77957318]
[1742973197835,2.31045,2066.4,2066.3,2.77934002]
[1742973198239,1.3427,2066.4,2066.3,2.77934002]
[1742973199428,1.3427,2066.4,2066.3,4.14554002]
[1742973200838,1.3427,2066.4,2066.3,4.14526367]
[1742973201034,2.31045,2066.4,2066.3,4.14526367]
[1742973201242,2.31045,2066.4,2066.3,3.65057]
[1742973202542,2.31045,2066.4,2066.3,4.14526417]
[1742973203244,2.31045,2066.4,2066.3,3.65057]
[1742973203542,2.31045,2066.4,2066.3,4.1452665]
[1742973203745,1.3427,2066.4,2066.3,4.1452665]
[1742973204647,2.31045,2066.4,2066.3,4.1452665]
[1742973205042,1.3427,2066.4,2066.3,4.1452665]
[1742973205239,2.31045,2066.4,2066.3,4.1452665]
[1742973207652,2.31045,2066.4,2066.3,4.14498555]
[1742973207853,1.3427,2066.4,2066.3,4.14498555]
[1742973208540,1.3427,2066.4,2066.3,4.14497002]
[1742973209646,2.31045,2066.4,2066.3,4.14497002]
[1742973209843,1.3427,2066.4,2066.3,4.14497002]
[1742973211252,2.31045,2066.4,2066.3,4.14497002]
[1742973211447,1.3427,2066.4,2066.3,4.14497002]
[1742973211950,1.3427,2066.4,2066.3,4.14500833]
[1742973212146,2.31045,2066.4,2066.3,4.14500833]
[1742973212445,1.3427,2066.4,2066.3,4.14500833]
[1742973214060,1.3427,2066.4,2066.3,4.14507855]
[1742973216055,1.3427,2066.4,2066.3,4.14520196]
[1742973218156,1.3427,2066.4,2066.3,4.14541023]
[1742973219159,1.3427,2066.4,2066.3,4.80845131]
[1742973220258,1.3427,2066.4,2066.3,4.80881554]
[1742973222261,1.3427,2066.4,2066.3,4.80909842]
[1742973224453,1.3427,2066.4,2066.3,4.810005]
[1742973226056,2.36498847,2066.7,2066.6,0.96765]
[1742973226360,2.36496847,2066.7,2066.6,1.46339681]
[1742973226760,0.00725847,2066.7,2066.6,1.46339681]
[1742973227162,0.00725847,2066.7,2066.6,2.10389681]
[1742973227459,1.37475847,2066.7,2066.6,4.12059681]
[1742973230566,1.37475847,2066.7,2066.6,3.62485]
[1742973230767,1.37475847,2066.7,2066.6,4.12063556]
[1742973233461,1.37475847,2066.7,2066.6,4.78433249]
[1742973234969,1.37475847,2066.7,2066.6,4.78397748]
[1742973236174,1.37475847,2066.7,2066.6,4.78376126]
[1742973236978,1.37475847,2066.7,2066.6,4.7835917]
[1742973239078,1.37475847,2066.7,2066.6,4.78340894]
[1742973240983,1.37475847,2066.7,2066.6,4.78336969]
[1742973241183,1.37475847,2066.7,2066.6,4.78336972]
[1742973242184,1.37475847,2066.7,2066.6,4.78333639]
[1742973243187,1.37475847,2066.7,2066.6,4.78338592]
[1742973247491,1.37475847,2066.7,2066.6,4.78340984]
[1742973249593,1.37475847,2066.7,2066.6,4.78349192]
[1742973251491,1.37475847,2066.7,2066.6,4.28815316]
[1742973251695,1.37475847,2066.7,2066.6,4.78374682]
[1742973253593,1.37475847,2066.7,2066.6,3.62485]
[1742973253789,1.37475847,2066.7,2066.6,4.78396925]
[1742973254692,1.37475847,2066.7,2066.6,3.62485]
[1742973254891,1.37475847,2066.7,2066.6,44.42485]
[1742973255889,1.37475847,2066.7,2066.6,46.08010506]
[1742973256094,1.37475847,2066.7,2066.6,45.58437391]
[1742973256492,1.37475847,2066.7,2066.6,41.95952391]
[1742973256692,2.34236847,2066.7,2066.6,0.49573743]
[1742973257089,0.96766,2066.6,2066.5,0.9677]
[1742973257391,2.7232,2066.6,2066.5,0.9677]
[1742973258503,2.7232,2066.6,2066.5,1.46352479]
[1742973260401,2.7232,2066.6,2066.5,1.46337565]
[1742973261301,2.0461,2066.6,2066.5,1.46337565]
[1742973261706,2.0461,2066.6,2066.5,2.84027565]
[1742973261899,3.01375,2066.6,2066.5,1.46337565]
[1742973262598,3.01375,2066.6,2066.5,0.9677]
[1742973262799,2.0461,2066.6,2066.5,0.9677]
[1742973263195,3.01375,2066.6,2066.5,0.9677]
[1742973263808,3.01375,2066.6,2066.5,1.4631863]
[1742973264011,2.0461,2066.6,2066.5,1.4631863]
[1742973264505,2.0461,2066.6,2066.5,1.46317814]
[1742973265410,3.01375,2066.6,2066.5,1.46317814]
[1742973265712,2.0461,2066.6,2066.5,1.46317814]
[1742973266012,3.01375,2066.6,2066.5,1.46317814]
[1742973267611,3.01375,2066.6,2066.5,2.77282023]
[1742973268712,3.01375,2066.6,2066.5,0.49532023]
[1742973269615,0.9677,2066.5,2066.4,41.76772]
[1742973269812,2.3723,2066.5,2066.4,42.2629891]
[1742973271913,2.3723,2066.5,2066.4,42.26295084]
[1742973273110,1.4046,2066.5,2066.4,42.26295084]
[1742973273305,2.3723,2066.5,2066.4,42.26295084]
[1742973275011,1.4046,2066.5,2066.4,42.26295084]
[1742973275613,2.3723,2066.5,2066.4,42.26295084]
[1742973275909,1.4046,2066.5,2066.4,41.76772]
[1742973276115,1.4046,2066.5,2066.4,42.26294938]
[1742973276919,2.3723,2066.5,2066.4,42.26294938]
[1742973277615,1.4046,2066.5,2066.4,42.26294938]
[1742973279317,2.3723,2066.5,2066.4,42.26294938]
[1742973279617,1.4046,2066.5,2066.4,42.26294938]
[1742973280020,2.3723,2066.5,2066.4,42.26294938]
[1742973281115,1.4046,2066.5,2066.4,42.26294938]
[1742973282020,2.3723,2066.5,2066.4,42.26294938]
[1742973283624,1.4046,2066.5,2066.4,42.26294938]
[1742973283815,2.3723,2066.5,2066.4,42.26294938]
[1742973284313,1.4046,2066.5,2066.4,42.26294938]
[1742973284515,1.4046,2066.5,2066.4,42.26349212]
[1742973286518,1.4046,2066.5,2066.4,41.76772]
[1742973286718,1.4046,2066.5,2066.4,42.26389374]
[1742973290931,1.4046,2066.5,2066.4,42.26395411]
[1742973292426,1.4046,2066.5,2066.4,42.92845423]
[1742973293033,1.4046,2066.5,2066.4,42.92849332]
[1742973295222,1.4046,2066.5,2066.4,42.92851892]
[1742973297231,1.4046,2066.5,2066.4,42.9285709]
[1742973301431,1.4046,2066.5,2066.4,42.92867065]
[1742973303043,1.4046,2066.5,2066.4,43.59687065]
[1742973304342,1.4046,2066.5,2066.4,43.10052144]
[1742973304539,1.4046,2066.5,2066.4,43.59686895]
[1742973307742,1.4046,2066.5,2066.4,43.59686583]
[1742973312040,1.4046,2066.5,2066.4,43.59686255]
[1742973314346,0.00725847,2066.7,2066.6,0.96765]
[1742973314638,0.00725847,2066.7,2066.6,2.12856019]
[1742973315043,0.00725847,2066.7,2066.6,2.81946019]
[1742973315434,0.00725847,2066.7,2066.6,4.17826019]
[1742973316138,0.00725847,2066.7,2066.6,4.17780152]
[1742973318243,0.00725847,2066.7,2066.6,4.17675985]
[1742973319042,0.00725847,2066.7,2066.6,3.51303849]
[1742973319845,0.00725847,2066.7,2066.6,4.17656153]
[1742973320042,0.00725847,2066.7,2066.6,3.51303849]
[1742973320248,0.00725847,2066.7,2066.6,4.1765016]
[1742973320548,0.00725847,2066.7,2066.6,4.17648219]
[1742973321644,0.00725847,2066.7,2066.6,3.51303849]
[1742973321839,0.00725847,2066.7,2066.6,4.17640932]
[1742973322055,0.00725847,2066.7,2066.6,3.51303849]
[1742973323645,0.00725847,2066.7,2066.6,4.17627737]
[1742973323845,0.00725847,2066.7,2066.6,3.51303849]
[1742973324350,0.00725847,2066.7,2066.6,4.17624363]
[1742973324649,0.00725847,2066.7,2066.6,3.68052493]
[1742973324847,3.116,2067.2,2066.8,2.41887]
[1742973325044,3.2078,2067.5,2066.9,6.97566]
[1742973325045,0.9673,2067.4,2066.9,6.97566]
[1742973325242,0.96733,2067.3,2067.0,0.49528248]
[1742973325443,0.96733,2067.3,2067.2,0.96734]
[1742973326049,0.96733,2067.3,2067.2,0.4952293]
[1742973326252,0.96742,2067.1,2067.0,0.00725847]
[1742973326451,2.99181,2067.2,2067.1,0.96742]
[1742973326650,2.99181,2067.2,2067.1,1.46245801]
[1742973327055,2.99181,2067.2,2067.1,0.49503801]
[1742973328148,2.99181,2067.2,2067.1,1.46236848]
[1742973330052,2.99181,2067.2,2067.1,0.49494848]
[1742973330360,0.96742,2067.1,2067.0,2.29488847]
[1742973330559,2.99922,2067.1,2067.0,2.78965531]
[1742973330960,2.0318,2067.1,2067.0,2.78965531]
[1742973332160,2.0318,2067.1,2067.0,2.78962664]
[1742973334658,1.3653,2067.1,2067.0,2.78962664]
[1742973336060,1.3653,2067.1,2067.0,2.29488847]
[1742973336362,1.3653,2067.1,2067.0,2.78948735]
[1742973337749,0.00725847,2067.5,2067.1,2.41852]
[1742973337955,1.28955847,2067.5,2067.4,0.96728]
[1742973338263,2.25678847,2067.5,2067.4,1.46187888]
[1742973338561,1.28955847,2067.5,2067.4,1.46187888]
[1742973339247,2.25678847,2067.5,2067.4,1.46187888]
[1742973339449,2.93938847,2067.5,2067.4,1.46187888]
[1742973340065,1.97215847,2067.5,2067.4,0.96728]
[1742973340263,1.97215847,2067.5,2067.4,1.46165239]
[1742973340465,1.97215847,2067.5,2067.4,0.96728]
[1742973340667,1.97215847,2067.5,2067.4,1.46164156]
[1742973342171,1.97215847,2067.5,2067.4,1.46164845]
[1742973344163,1.28955847,2067.5,2067.4,1.46172693]
[1742973344868,1.28955847,2067.5,2067.4,42.26172693]
[1742973345961,1.28955847,2067.5,2067.4,43.56642693]
[1742973346169,1.28955847,2067.5,2067.4,43.56626546]
[1742973348274,1.28955847,2067.5,2067.4,43.56611726]
[1742973350175,1.28955847,2067.5,2067.4,43.56605592]
[1742973357971,1.28955847,2067.5,2067.4,43.56614327]
[1742973358183,1.28955847,2067.5,2067.4,44.25414327]
[1742973362389,1.28955847,2067.5,2067.4,44.91670777]
[1742973366380,1.28955847,2067.5,2067.4,44.91719525]
[1742973368290,1.28955847,2067.5,2067.4,43.75998]
[1742973368488,1.28955847,2067.5,2067.4,44.91830887]
[1742973370399,1.28955847,2067.5,2067.4,44.91840546]
[1742973372388,1.28955847,2067.5,2067.4,44.91926931]
[1742973374297,1.28955847,2067.5,2067.4,44.2556112]
[1742973374497,1.28955847,2067.5,2067.4,44.91964608]
[1742973376297,1.28955847,2067.5,2067.4,43.75998]
[1742973376597,1.28955847,2067.5,2067.4,44.91998982]
[1742973377187,1.28955847,2067.5,2067.4,42.92728982]
[1742973377598,2.60905847,2067.5,2067.4,42.92728982]
[1742973377796,3.57628847,2067.5,2067.4,41.96000982]
[1742973377992,3.57628847,2067.5,2067.4,41.29593938]
[1742973378392,3.57628847,2067.5,2067.4,41.29601543]
[1742973379802,6.78408847,2067.5,2067.4,41.29601543]
[1742973380395,6.78408847,2067.5,2067.4,0.49573349]
[1742973381099,0.96742,2067.1,2067.0,0.97469847]
[1742973381302,0.96742,2067.1,2067.0,43.92019771]
[1742973382100,2.323,2067.2,2067.1,0.96742]
[1742973382303,1.3556,2067.2,2067.1,0.49549924]
[1742973382501,2.32297,2067.2,2067.1,0.49549924]
[1742973384198,1.3556,2067.2,2067.0,41.77468847]
[1742973384402,2.32522,2067.1,2067.0,43.45468847]
[1742973384594,2.32522,2067.1,2067.0,42.98196553]
[1742973386099,2.32522,2067.1,2067.0,42.98182112]
[1742973390301,2.32522,2067.1,2067.0,42.48725847]
[1742973391509,5.43722,2067.1,2067.0,42.48725847]
[1742973393317,5.43722,2067.1,2067.0,42.98120038]
[1742973393516,1.3578,2067.1,2067.0,43.94866038]
[1742973393706,1.3578,2067.1,2067.0,45.33166038]
[1742973394214,2.32522,2067.1,2067.0,45.33166038]
[1742973394404,2.32522,2067.1,2067.0,45.33165266]
[1742973395003,1.3578,2067.1,2067.0,45.33165266]
[1742973396411,3.112,2067.4,2067.0,44.36419266]
[1742973396617,1.4125,2067.3,2067.1,1.85973419]
[1742973396807,1.4125,2067.3,2067.2,2.85645419]
[1742973397004,2.37982,2067.3,2067.2,2.85645419]
[1742973397213,2.37982,2067.3,2067.2,2.85650375]
[1742973398214,1.4125,2067.3,2067.2,2.85650375]
[1742973398416,1.4125,2067.3,2067.2,2.8566417]
[1742973398615,2.37982,2067.3,2067.2,2.8566417]
[1742973400117,1.4125,2067.3,2067.2,2.8566417]
[1742973400309,2.37982,2067.3,2067.2,2.8566417]
[1742973400503,2.37982,2067.3,2067.2,2.85680722]
[1742973402018,1.4125,2067.3,2067.2,2.85680722]
[1742973402412,1.4125,2067.3,2067.2,6.06460722]
[1742973402609,0.00725847,2067.5,2067.4,0.96728]
[1742973402808,0.00725847,2067.5,2067.4,1.46172356]
[1742973403010,1.4066,2067.7,2067.6,0.96718]
[1742973403306,1.4066,2067.7,2067.6,1.46162356]
[1742973403717,1.4066,2067.7,2067.6,2.78352356]
[1742973404516,1.4066,2067.7,2067.6,2.78342864]
[1742973404824,0.004839,2067.9,2067.8,0.96709]
[1742973405007,1.411439,2067.9,2067.8,1.46143864]
[1742973405211,1.411439,2067.9,2067.8,2.78333864]
[1742973406122,2.378479,2067.9,2067.8,2.78333864]
[1742973406328,1.411439,2067.9,2067.8,3.49073864]
[1742973408526,1.411439,2067.9,2067.8,3.49033731]
[1742973409619,0.004839,2067.9,2067.8,6.69813731]
[1742973410220,0.6665,2068.4,2067.9,2.41762]
[1742973410414,1.4016,2068.2,2068.1,0.96695]
[1742973410627,1.4016,2068.2,2068.1,42.26038083]
[1742973411129,1.4016,2068.2,2068.1,43.63228083]
[1742973412427,1.4016,2068.2,2068.1,43.63178517]
[1742973414528,1.4016,2068.2,2068.1,43.63146085]
[1742973416534,1.4016,2068.2,2068.1,43.63128854]
[1742973416829,1.4016,2068.2,2068.1,43.13885]
[1742973417023,1.4016,2068.2,2068.1,43.63129006]
[1742973417219,1.4016,2068.2,2068.1,43.6312887]
[1742973417423,1.4016,2068.2,2068.1,43.13885]
[1742973417626,1.4016,2068.2,2068.1,43.63125737]
[1742973417835,1.4016,2068.2,2068.1,43.13885]
[1742973418631,1.4016,2068.2,2068.1,43.63126414]
[1742973419325,1.4016,2068.2,2068.1,43.63127027]
[1742973419530,1.4016,2068.2,2068.1,43.63127227]
[1742973420031,1.4016,2068.2,2068.1,43.13885]
[1742973420230,1.4016,2068.2,2068.1,43.6312714]
[1742973424436,1.4016,2068.2,2068.1,43.13885]
[1742973424736,1.4016,2068.2,2068.1,43.63172925]
[1742973426942,1.4016,2068.2,2068.1,44.99982925]
[1742973428733,1.4016,2068.2,2068.1,45.00038689]
[1742973429133,0.6967,2068.6,2068.5,0.96676]
[1742973429443,2.99932,2068.6,2068.5,0.96676]
[1742973429627,2.0326,2068.6,2068.5,0.96676]
[1742973429832,2.0326,2068.6,2068.5,1.46035174]
[1742973430039,2.0326,2068.6,2068.5,2.83775174]
[1742973430735,1.3359,2068.6,2068.5,2.83775174]
[1742973431138,1.3359,2068.6,2068.5,2.83789507]
[1742973432539,1.3359,2068.6,2068.5,2.8382812]
[1742973432742,2.31299,2069.1,2069.0,0.96653]
[1742973432943,1.3465,2069.1,2068.7,5.62442]
[1742973433245,0.96654,2069.0,2068.9,0.96655]
[1742973433437,2.31302,2069.1,2069.0,0.96653]
[1742973434046,0.96653,2069.0,2068.9,2.25213]
[1742973434239,0.96653,2069.0,2068.9,2.74615644]
[1742973435638,2.31303,2069.1,2069.0,0.96653]
[1742973435943,3.60863,2069.1,2069.0,0.96653]
[1742973436242,0.96653,2069.0,2068.9,2.25214]
[1742973436439,2.26213,2069.0,2068.9,2.25214]
[1742973436647,2.26213,2069.0,2068.9,0.49393013]
[1742973436841,2.26213,2069.0,2068.9,0.96658]
[1742973437236,2.26213,2069.0,2068.9,2.29908]
[1742973437438,2.26213,2069.0,2068.9,2.79302203]
[1742973438044,2.26213,2069.0,2068.9,2.29908]
[1742973438248,2.26213,2069.0,2068.9,2.79304936]
[1742973438547,2.26213,2069.0,2068.9,2.79316101]
[1742973439136,1.2956,2069.0,2068.9,2.79316101]
[1742973439745,2.26213,2069.0,2068.9,2.79316101]
[1742973440546,2.26213,2069.0,2068.9,2.79310817]
[1742973440941,1.2956,2069.0,2068.9,2.79310817]
[1742973441347,2.26213,2069.0,2068.9,2.79310817]
[1742973442645,1.2956,2069.0,2068.9,2.79302197]
[1742973442839,2.26213,2069.0,2068.9,2.79302197]
[1742973443943,1.2956,2069.0,2068.9,2.79302197]
[1742973444651,1.2956,2069.0,2068.9,2.79300065]
[1742973446345,2.26213,2069.0,2068.9,2.79298967]
[1742973446550,1.2956,2069.0,2068.9,2.79298967]
[1742973448246,2.26213,2069.0,2068.9,2.79298967]
[1742973449350,2.26213,2069.0,2068.9,2.79306704]
[1742973451061,2.26213,2069.0,2068.9,1.82648704]
[1742973451258,2.26213,2069.0,2068.9,2.79306704]
[1742973451460,2.26213,2069.0,2068.9,2.7931819]
[1742973452261,0.96664,2068.8,2068.7,0.96663]
[1742973452463,0.96664,2068.8,2068.7,2.78406645]
[1742973452956,2.28911,2068.9,2068.8,0.96662]
[1742973453159,1.3225,2068.9,2068.8,2.78405645]
[1742973453363,1.3225,2068.9,2068.8,4.98405645]
[1742973453550,1.3225,2068.9,2068.8,3.44584883]
[1742973454262,1.3225,2068.9,2068.8,3.44593072]
[1742973455254,0.6871,2069.1,2069.0,0.96653]
[1742973455457,0.6871,2069.1,2069.0,1.46074834]
[1742973455958,1.65358,2069.1,2069.0,0.49421834]
[1742973456348,1.65358,2069.1,2069.0,1.77941834]
[1742973457360,1.65358,2069.1,2069.0,1.77994012]
[1742973458265,1.65358,2069.1,2069.0,2.74647012]
[1742973461471,1.65358,2069.1,2069.0,2.74697526]
[1742973463471,1.65358,2069.1,2069.0,2.74701171]
[1742973465577,2.33705,2069.2,2069.1,0.96648]
[1742973465769,2.33705,2069.2,2069.1,2.84886171]
[1742973466078,2.33705,2069.2,2069.1,43.64886171]
[1742973467365,3.04315,2069.2,2069.1,43.64886171]
[1742973470977,3.04315,2069.2,2069.1,42.68238171]
[1742973471373,3.04315,2069.2,2069.1,43.64886171]
[1742973471681,2.33705,2069.2,2069.1,43.64890989]
[1742973473584,2.33705,2069.2,2069.1,43.64895058]
[1742973474177,2.33705,2069.2,2069.1,42.68247058]
[1742973475086,2.33705,2069.2,2069.1,43.64895058]
[1742973475683,2.33705,2069.2,2069.1,42.68251663]
[1742973475873,2.33705,2069.2,2069.1,43.64899663]
[1742973477488,2.33705,2069.2,2069.1,43.6490034]
[1742973479688,2.33705,2069.2,2069.1,43.64905669]
[1742973482791,1.3706,2069.2,2069.1,43.64905669]
[1742973483487,1.3706,2069.2,2069.1,43.15358]
[1742973483693,1.3706,2069.2,2069.1,43.64926067]
[1742973484192,2.33704,2069.2,2069.1,43.64926067]
[1742973485184,1.3706,2069.2,2069.1,43.64926067]
[1742973485695,2.33704,2069.2,2069.1,43.64926067]
[1742973487488,2.33704,2069.2,2069.1,43.15358]
[1742973487688,2.33704,2069.2,2069.1,43.64928665]
[1742973487994,1.3706,2069.2,2069.1,43.64928665]
[1742973488193,0.96634,2069.5,2069.4,0.96634]
[1742973488389,2.37514,2069.5,2069.4,1.46204665]
[1742973488590,2.37514,2069.5,2069.4,0.49570665]
[1742973488792,2.37514,2069.5,2069.4,1.46204665]
[1742973489487,2.37514,2069.5,2069.4,0.96634]
[1742973489800,2.37514,2069.5,2069.4,1.4619001]
[1742973490398,2.37514,2069.5,2069.4,0.4955601]
[1742973490603,2.37514,2069.5,2069.4,1.4619001]
[1742973490793,2.37514,2069.5,2069.4,2.8218001]
[1742973491192,2.37514,2069.5,2069.4,1.8554601]
[1742973491591,2.37514,2069.5,2069.4,1.8553708]
[1742973492196,3.08224,2069.5,2069.4,1.8553708]
[1742973493100,6.29004,2069.5,2069.4,1.8553708]
[1742973493492,0.96639,2069.3,2069.2,2.3187]
[1742973493694,0.96639,2069.3,2069.2,2.81412716]
[1742973494598,0.96639,2069.3,2069.2,1.84772716]
[1742973494800,0.96639,2069.3,2069.2,3.23352716]
[1742973495602,0.96639,2069.3,2069.2,3.23352484]
[1742973495902,0.96639,2069.3,2069.2,4.19996484]
[1742973496093,0.96639,2069.3,2069.2,3.23352484]
[1742973499002,0.96639,2069.3,2069.2,0.49542484]
[1742973499203,1.60429,2069.3,2069.2,0.49542484]
[1742973499407,2.93059,2069.3,2069.2,0.49542484]
[1742973499701,0.96644,2069.2,2069.1,40.8]
[1742973499894,6.15164,2069.2,2069.1,41.2954553]
[1742973500793,6.15164,2069.2,2069.1,42.5759553]
[1742973502798,6.15164,2069.2,2069.1,41.2954553]
[1742973503500,0.96648,2069.1,2069.0,1.2805]
[1742973503702,2.24768,2069.1,2069.0,1.77585998]
[1742973503903,2.24768,2069.1,2069.0,42.57585998]
[1742973504607,2.24768,2069.1,2069.0,43.54238998]
[1742973505498,2.24768,2069.1,2069.0,43.54235599]
[1742973507104,2.24768,2069.1,2069.0,43.04703]
[1742973507307,2.24768,2069.1,2069.0,43.54234291]
[1742973510209,1.2812,2069.1,2069.0,43.54234291]
[1742973510712,2.24768,2069.1,2069.0,43.54234291]
[1742973511210,2.24768,2069.1,2069.0,42.57581291]
[1742973511703,2.24768,2069.1,2069.0,42.57578926]
[1742973513908,2.24768,2069.1,2069.0,0.49528926]
[1742973513909,5.35268,2069.1,2069.0,0.49528926]
[1742973514114,5.35268,2069.1,2069.0,1.86648926]
[1742973514614,5.35268,2069.1,2069.0,41.29528926]
[1742973515712,5.35268,2069.1,2069.0,41.29518468]
[1742973516617,5.35268,2069.1,2068.9,0.00725847]
[1742973516618,0.96653,2069.0,2068.9,0.00725847]
[1742973516913,3.00710413,2069.0,2068.9,0.00725847]
[1742973517124,2.92693,2069.0,2068.9,0.00725847]
[1742973517409,3.00710266,2069.0,2068.9,0.00725847]
[1742973517718,6.03193,2069.0,2068.9,0.00725847]
[1742973518507,8.53193,2069.0,2068.9,0.00725847]
[1742973519914,8.61210176,2069.0,2068.9,0.00725847]
[1742973521105,8.61210176,2069.0,2067.9,2.81146992]
[1742973521106,2.41706,2068.4,2067.8,3.2078]
[1742973521312,0.9669,2068.2,2068.1,1.4092]
[1742973521512,0.9669,2068.2,2068.1,1.9036825]
[1742973521711,2.3685,2068.2,2068.1,1.90340414]
[1742973522016,2.3685,2068.2,2068.1,1.4092]
[1742973524120,0.96695,2068.1,2068.0,1.3977]
[1742973524318,2.36855,2068.1,2068.0,2.7909]
[1742973525217,1.4016,2068.1,2068.0,2.7909]
[1742973526211,2.36855,2068.1,2068.0,3.7579]
[1742973526912,2.36855,2068.1,2068.0,2.7909]
[1742973532022,2.36855,2068.1,2068.0,3.7579]
[1742973532324,2.36855,2068.1,2068.0,2.7909]
[1742973534227,2.36855,2068.1,2068.0,3.7579]
[1742973534927,0.96693,2068.2,2068.1,0.96694]
[1742973535129,0.96693,2068.2,2068.1,1.3863]
[1742973535327,2.24533,2068.2,2068.1,1.3863]
[1742973535721,2.24533,2068.2,2068.1,2.35325]
[1742973535922,2.24533,2068.2,2068.1,1.3863]
[1742973544536,2.24533,2068.2,2068.1,1.8805839]
[1742973544732,2.24533,2068.2,2068.1,1.3863]
[1742973547136,0.96695,2068.1,2068.0,1.3977]
[1742973547323,5.45315,2068.1,2068.0,3.27130533]
[1742973548131,5.45315,2068.1,2068.0,0.49490533]
[1742973548637,5.45315,2068.1,2067.9,0.00725847]
[1742973548638,0.967,2068.0,2067.9,0.00725847]
[1742973548827,6.6942,2068.0,2067.9,0.00725847]
[1742973558230,18.0972,2068.0,2066.8,5.62668]
[1742973558433,0.96738,2067.2,2067.1,1.4032]
[1742973558635,0.96738,2067.2,2067.1,3.49817169]
[1742973558838,0.96738,2067.2,2067.1,44.29817169]
[1742973559038,2.38186,2067.3,2067.2,0.96737]
[1742973559333,2.38186,2067.3,2067.2,2.77624169]
[1742973559534,2.38186,2067.3,2067.2,1.80887169]
[1742973559728,2.38186,2067.3,2067.2,1.80862366]
[1742973561842,2.38186,2067.3,2067.2,1.80824165]
[1742973563646,2.38186,2067.3,2067.2,1.80798916]